bitfinex/quotes_SOLUSD_20250531
["timestamp","ask_amount","ask_price","bid_price","bid_amount"]
[1748690586889,152.11321214,153.36,153.31,6.52273172]
[1748690587083,7.86872184,153.34,153.3,6.52303829]
[1748690587680,7.86872184,153.34,153.29,7.86872184]
[1748690587884,12.28434155,153.33,153.28,12.28434155]
[1748690588271,12.28434155,153.34,153.29,12.28434155]
[1748690588781,12.28434155,153.34,153.29,18.8077316]
[1748690589183,18.80591989,153.34,153.29,18.8077316]
[1748690590393,12.28434155,153.33,153.28,18.80823926]
[1748690590575,12.28434155,153.33,153.28,12.28434155]
[1748690590767,18.80734345,153.31,153.26,12.28434155]
[1748690590966,18.80734345,153.31,153.26,18.80916645]
[1748690592406,12.28434155,153.3,153.25,18.80952338]
[1748690593602,18.80756022,153.3,153.25,12.28434155]
[1748690593798,18.80756022,153.3,153.24,12.28434155]
[1748690593799,12.28434155,153.29,153.24,12.28434155]
[1748690594795,18.80806496,153.29,153.24,18.81005068]
[1748690595113,18.80806496,153.29,153.24,12.28434155]
[1748690595594,12.28434155,153.28,153.23,18.8103042]
[1748690596101,12.28434155,153.26,153.22,6.5264059]
[1748690598905,12.28434155,153.27,153.22,18.81074745]
[1748690600990,12.28434155,153.3,153.25,12.28434155]
[1748690601886,12.28434155,153.31,153.27,12.28434155]
[1748690602114,12.28434155,153.32,153.27,12.28434155]
[1748690602299,12.28434155,153.31,153.27,12.28434155]
[1748690603099,12.28434155,153.31,153.27,18.80844594]
[1748690604198,12.28434155,153.32,153.27,18.80844594]
[1748690604596,170.24547703,153.34,153.28,12.28434155]
[1748690604597,12.28434155,153.33,153.28,12.28434155]
[1748690605197,18.80632214,153.33,153.28,18.80828474]
[1748690605893,12.28434155,153.32,153.28,6.52394319]
[1748690606905,12.28434155,153.32,153.27,18.80859699]
[1748690608220,144.24544329,153.34,153.28,12.28434155]
[1748690608410,156.52978484,153.34,153.29,12.28434155]
[1748690609299,12.28434155,153.33,153.28,18.80805539]
[1748690612129,18.80636522,153.33,153.28,12.28434155]
[1748690612416,12.28434155,153.32,153.27,18.80861665]
[1748690613499,18.80677572,153.32,153.27,18.80861665]
[1748690616194,18.80677572,153.32,153.28,12.28434155]
[1748690619527,18.80624659,153.33,153.28,18.80814534]
[1748690620906,12.28434155,153.33,153.28,18.80814534]
[1748690621831,18.80622774,153.33,153.28,18.80814534]
[1748690629536,12.28434155,153.33,153.28,18.80814534]
[1748690629724,18.80623986,153.33,153.28,18.80814534]
[1748690630408,12.28434155,153.33,153.28,18.80814534]
[1748690630611,150.00819158,153.34,153.29,12.28434155]
[1748690631733,12.28434155,153.34,153.29,18.8075183]
[1748690632035,18.80589464,153.34,153.29,18.8075183]
[1748690632838,12.28434155,153.33,153.29,6.52317675]
[1748690634949,18.80589464,153.34,153.29,18.8075183]
[1748690635816,18.80589464,153.34,153.29,12.28434155]
[1748690636021,7.86137865,153.33,153.28,14.38521237]
[1748690637656,14.38341923,153.33,153.28,14.38521237]
[1748690638169,14.38341923,153.33,153.28,7.86137865]
[1748690638469,7.86137865,153.32,153.27,7.86137865]
[1748690638776,7.86137865,153.29,153.25,6.52512802]
[1748690638949,0.14216157,153.32,153.26,7.86137865]
[1748690638950,14.38411037,153.31,153.26,7.86137865]
[1748690639276,7.86137865,153.3,153.25,14.38650667]
[1748690639449,14.38411037,153.31,153.26,7.86137865]
[1748690640040,18.81065849,153.31,153.26,12.28792677]
[1748690640991,18.81065849,153.31,153.26,18.8127239]
[1748690644563,6.52273172,153.31,153.26,18.8127239]
[1748690644765,12.28792677,153.33,153.28,12.28792677]
[1748690646071,18.80991337,153.33,153.28,18.81184066]
[1748690647887,12.28792677,153.33,153.28,18.81184066]
[1748690649891,6.52156299,153.34,153.28,18.81184066]
[1748690650389,12.28792677,153.33,153.28,18.81184066]
[1748690652119,6.52156299,153.34,153.28,18.81184066]
[1748690652120,18.80948976,153.34,153.29,12.28792677]
[1748690652489,18.80948976,153.34,153.29,18.81137806]
[1748690653372,6.52156299,153.34,153.3,12.28792677]
[1748690653964,23.9236928,153.37,153.32,12.28792677]
[1748690655070,11.63576603,153.37,153.33,12.28792677]
[1748690655382,11.63576603,153.37,153.34,6.52145558]
[1748690656008,12.28792677,153.38,153.34,6.52145558]
[1748690656695,6.51949809,153.39,153.34,6.52145558]
[1748690656696,18.80742486,153.39,153.34,18.80938235]
[1748690657241,18.80742486,153.39,153.3,17.85430164]
[1748690657242,12.28792677,153.37,153.33,6.52174851]
[1748690657516,12.28792677,153.37,153.31,18.81065849]
[1748690658099,12.28792677,153.36,153.31,18.81065849]
[1748690658519,12.28792677,153.38,153.32,12.28792677]
[1748690658699,12.28792677,153.38,153.33,12.28792677]
[1748690659101,12.28792677,153.38,153.31,6.52273172]
[1748690659413,12.28792677,153.37,153.32,12.28792677]
[1748690659807,12.28792677,153.37,153.33,6.52188091]
[1748690662704,12.28792677,153.37,153.31,18.81065849]
[1748690665826,12.28792677,153.37,153.33,6.52188091]
[1748690666930,6.66149138,153.39,153.33,6.52188091]
[1748690667153,12.28792677,153.37,153.33,6.52188091]
[1748690667930,7.85756737,153.37,153.32,7.85756737]
[1748690669038,7.85756737,153.37,153.33,6.52188091]
[1748690669239,14.37778089,153.37,153.33,6.52188091]
[1748690669741,7.85756737,153.37,153.33,6.52188091]
[1748690673323,7.85756737,153.38,153.33,14.37944828]
[1748690674028,7.85756737,153.39,153.34,7.85756737]
[1748690675125,7.85756737,153.39,153.35,6.52103032]
[1748690675652,34.24153245,153.41,153.35,6.52103032]
[1748690675818,11.93625124,153.41,153.37,7.85756737]
[1748690676017,11.93625124,153.41,153.35,8.04203032]
[1748690676018,24.20642324,153.41,153.36,12.270172]
[1748690676854,11.93625124,153.41,153.36,12.270172]
[1748690677036,24.20642324,153.41,153.37,6.52017995]
[1748690678740,30.72500992,153.41,153.36,18.79065649]
[1748690681538,30.72500992,153.41,153.33,26.0]
[1748690681539,12.270172,153.38,153.33,26.0]
[1748690681827,12.270172,153.38,153.33,18.79205291]
[1748690682555,12.270172,153.37,153.32,113.14091112]
[1748690682746,12.270172,153.37,153.32,25.34091112]
[1748690683131,12.270172,153.37,153.32,13.07073912]
[1748690683467,18.79059298,153.37,153.32,13.07073912]
[1748690684336,18.79059298,153.37,153.32,25.34091112]
[1748690686949,12.270172,153.36,153.32,13.07073912]
[1748690687333,12.270172,153.36,153.32,6.52213912]
[1748690688658,6.52042098,153.37,153.32,6.52213912]
[1748690688829,12.270172,153.36,153.32,6.52213912]
[1748690689760,18.79084053,153.36,153.31,46.42614288]
[1748690689932,12.270172,153.34,153.29,18.79375475]
[1748690690244,12.270172,153.33,153.29,6.52358275]
[1748690690726,12.270172,153.33,153.28,44.869072]
[1748690690930,12.270172,153.33,153.28,51.39292018]
[1748690692431,18.79230356,153.33,153.28,25.39292018]
[1748690694253,12.270172,153.32,153.28,25.39292018]
[1748690694641,12.270172,153.33,153.28,25.39292018]
[1748690695357,12.270172,153.35,153.31,12.270172]
[1748690695661,12.270172,153.36,153.32,12.270172]
[1748690696440,12.270172,153.36,153.33,6.52188091]
[1748690697266,12.270172,153.36,153.32,18.79237913]
[1748690697765,12.270172,153.36,153.32,6.52220713]
[1748690701153,12.270172,153.35,153.31,6.52254917]
[1748690701351,6.52064018,153.36,153.31,18.79272117]
[1748690701352,12.270172,153.36,153.31,18.79272117]
[1748690704343,18.7908366,153.36,153.31,18.79272117]
[1748690704959,12.270172,153.36,153.31,18.79272117]
[1748690708269,12.270172,153.35,153.3,6.52303806]
[1748690708442,12.270172,153.35,153.29,38.270172]
[1748690708443,12.270172,153.33,153.28,106.669072]
[1748690708649,12.270172,153.33,153.28,18.869072]
[1748690709050,12.270172,153.34,153.29,12.270172]
[1748690709461,12.270172,153.34,153.29,18.79360898]
[1748690711272,12.270172,153.34,153.25,0.28432314]
[1748690711273,12.270172,153.3,153.25,44.79545748]
[1748690711646,12.270172,153.3,153.25,18.79545748]
[1748690711850,16.3036453,153.34,153.25,18.79545748]
[1748690711851,12.270172,153.29,153.25,6.52528548]
[1748690715149,12.270172,153.29,153.25,18.79545748]
[1748690716150,12.270172,153.3,153.25,18.79545748]
[1748690716755,12.270172,153.29,153.25,6.52528548]
[1748690716961,12.270172,153.28,153.23,52.40901965]
[1748690717560,12.270172,153.27,153.22,18.79672242]
[1748690717759,12.270172,153.26,153.22,6.52655042]
[1748690718178,12.270172,153.25,153.21,32.52682039]
[1748690721777,12.270172,153.24,153.21,32.52682039]
[1748690722679,12.270172,153.24,153.2,6.52736217]
[1748690722895,12.270172,153.23,153.2,6.52736217]
[1748690723063,12.270172,153.23,153.19,6.52784124]
[1748690724170,12.270172,153.22,153.19,6.52784124]
[1748690724581,12.270172,153.23,153.19,6.52784124]
[1748690728186,138.00817317,153.29,153.22,12.270172]
[1748690728374,138.00817317,153.29,153.23,12.270172]
[1748690728375,12.270172,153.28,153.23,12.270172]
[1748690728886,149.99402203,153.29,153.24,12.270172]
[1748690730069,149.99402203,153.29,153.24,18.79547446]
[1748690730475,12.270172,153.29,153.24,18.79547446]
[1748690731096,12.270172,153.3,153.25,12.270172]
[1748690732598,12.270172,153.3,153.26,6.52485971]
[1748690739194,12.270172,153.29,153.25,6.52520072]
[1748690739587,12.270172,153.28,153.24,6.5255919]
[1748690742108,12.270172,153.27,153.24,6.5255919]
[1748690742681,18.79497827,153.27,153.22,12.270172]
[1748690742878,18.79497827,153.27,153.21,26.0]
[1748690742879,12.270172,153.26,153.21,38.270172]
[1748690743078,12.270172,153.26,153.22,6.5263954]
[1748690746606,12.270172,153.25,153.22,6.5263954]
[1748690746808,12.270172,153.24,153.2,6.52728904]
[1748690747193,12.270172,153.23,153.2,6.52728904]
[1748690747390,12.270172,153.22,153.18,1.5471]
[1748690748409,12.270172,153.22,153.18,8.07519475]
[1748690749745,12.270172,153.22,153.18,1.5471]
[1748690749919,12.270172,153.22,153.17,44.79870023]
[1748690749920,12.270172,153.22,153.17,18.79870023]
[1748690753609,12.270172,153.21,153.17,6.52852823]
[1748690756105,16.45471015,153.26,153.18,12.270172]
[1748690756106,0.28432314,153.26,153.18,12.270172]
[1748690756300,12.270172,153.24,153.19,12.270172]
[1748690756489,12.270172,153.23,153.18,12.270172]
[1748690756692,12.270172,153.23,153.18,18.79807937]
[1748690757917,12.270172,153.22,153.18,6.52790737]
[1748690758294,12.270172,153.21,153.17,18.79873778]
[1748690762406,12.270172,153.22,153.17,18.79873778]
[1748690762602,12.270172,153.22,153.18,12.270172]
[1748690763011,161.73288522,153.27,153.19,12.270172]
[1748690763012,12.270172,153.24,153.19,12.270172]
[1748690764311,12.270172,153.24,153.2,6.52741514]
[1748690767500,12.270172,153.25,153.2,18.79758714]
[1748690771530,18.79546237,153.25,153.2,6.52741514]
[1748690771828,12.270172,153.23,153.2,6.52741514]
[1748690772819,12.270172,153.22,153.16,93.8818]
[1748690773010,12.270172,153.22,153.16,18.351972]
[1748690773330,12.270172,153.22,153.17,12.270172]
[1748690773524,12.270172,153.22,153.17,18.7988656]
[1748690774427,161.73288522,153.27,153.18,12.270172]
[1748690774428,12.270172,153.23,153.18,12.270172]
[1748690774807,12.270172,153.24,153.19,12.270172]
[1748690775008,12.270172,153.23,153.18,12.270172]
[1748690775627,161.73288522,153.27,153.17,6.5286936]
[1748690775628,12.270172,153.22,153.17,6.5286936]
[1748690775929,12.270172,153.23,153.18,12.270172]
[1748690777908,18.79635147,153.23,153.18,18.79824845]
[1748690778431,12.270172,153.23,153.18,18.79824845]
[1748690780445,12.270172,153.22,153.18,6.52807645]
[1748690787420,18.79679662,153.22,153.16,6.0818]
[1748690787651,18.79679662,153.22,153.15,26.0]
[1748690787652,12.270172,153.2,153.15,38.270172]
[1748690788626,12.270172,153.21,153.16,18.79927424]
[1748690792429,18.79727828,153.21,153.16,18.79927424]
[1748690792630,12.270172,153.2,153.16,6.52910224]
[1748690794626,12.270172,153.2,153.15,38.270172]
[1748690794627,18.79764467,153.2,153.15,44.7996182]
[1748690794851,12.270172,153.19,153.15,32.5294462]
[1748690795151,12.270172,153.19,153.15,6.5294462]
[1748690795634,18.79764467,153.2,153.15,18.7996182]
[1748690796855,18.79764467,153.2,153.14,18.80014457]
[1748690799754,12.270172,153.19,153.14,18.80014457]
[1748690800330,12.270172,153.19,153.14,6.52997257]
[1748690800530,12.270172,153.19,153.14,18.80014457]
[1748690801949,7.87610241,153.19,153.14,14.40607498]
[1748690803955,7.87610241,153.18,153.14,6.52997257]
[1748690806161,7.87610241,153.19,153.14,6.52997257]
[1748690809050,7.87610241,153.18,153.14,6.52997257]
[1748690810048,7.87610241,153.19,153.14,6.52997257]
[1748690812064,7.87610241,153.19,153.14,14.40607498]
[1748690817944,7.87610241,153.23,153.18,7.87610241]
[1748690818158,7.87610241,153.23,153.15,9.45900241]
[1748690818159,7.87610241,153.21,153.15,9.45900241]
[1748690819038,7.87610241,153.2,153.15,9.45900241]
[1748690819239,7.87610241,153.2,153.15,7.87610241]
[1748690819463,7.87610241,153.19,153.14,6.52997257]
[1748690820351,14.40395567,153.19,153.14,6.52997257]
[1748690820567,7.87610241,153.18,153.14,6.52997257]
[1748690822851,7.87610241,153.17,153.13,6.53027443]
[1748690823852,7.87610241,153.17,153.12,6.53082549]
[1748690824070,7.87610241,153.17,153.12,14.4069279]
[1748690825756,7.87610241,153.17,153.11,27.5829]
[1748690825757,7.87610241,153.14,153.11,6.53110501]
[1748690825957,7.87610241,153.14,153.1,6.53167864]
[1748690828382,7.87610241,153.13,153.1,6.53167864]
[1748690829473,7.87610241,153.13,153.08,6.53236754]
[1748690829474,7.87610241,153.12,153.08,6.53236754]
[1748690829781,6.53041193,153.13,153.07,32.53289077]
[1748690829782,7.87610241,153.1,153.07,32.53289077]
[1748690830146,7.87610241,153.1,153.05,24.21061433]
[1748690830147,7.87610241,153.1,153.06,6.53323329]
[1748690830368,7.87610241,153.09,153.03,1.6337]
[1748690830570,7.87610241,153.09,153.04,30.74579572]
[1748690830752,7.87610241,153.1,153.05,7.87610241]
[1748690831776,7.87610241,153.1,153.06,6.5333856]
[1748690833774,137.72385003,153.14,153.08,7.87610241]
[1748690833978,145.59995244,153.14,153.09,7.87610241]
[1748690835276,7.87610241,153.14,153.09,7.87610241]
[1748690835851,7.87610241,153.14,153.1,6.53167864]
[1748690836171,12.3140474,153.14,153.1,6.53167864]
[1748690836369,12.3140474,153.13,153.1,6.53167864]
[1748690838150,12.3140474,153.13,153.09,6.53210529]
[1748690839971,12.3140474,153.12,153.09,6.53210529]
[1748690840281,12.3140474,153.12,153.08,6.532532]
[1748690841982,12.3140474,153.11,153.08,6.532532]
[1748690843287,12.3140474,153.14,153.1,12.3140474]
[1748690843459,12.3140474,153.15,153.1,12.3140474]
[1748690844510,12.3140474,153.15,153.11,6.53125204]
[1748690846988,12.3140474,153.13,153.1,6.53160762]
[1748690847182,12.3140474,153.12,153.08,6.532532]
[1748690847601,12.3140474,153.13,153.08,18.8465794]
[1748690853390,12.3140474,153.14,153.08,18.8465794]
[1748690854483,12.3140474,153.15,153.09,12.3140474]
[1748690855305,12.3140474,153.15,153.1,12.3140474]
[1748690855693,12.3140474,153.15,153.11,6.53125204]
[1748690855903,7.88023001,153.15,153.11,6.53125204]
[1748690856588,139.32445003,153.17,153.11,6.53125204]
[1748690856589,8.02239158,153.16,153.11,6.53125204]
[1748690857986,12.31112491,153.15,153.1,12.31112491]
[1748690859093,12.31112491,153.15,153.11,6.53125204]
[1748690865913,12.31112491,153.14,153.11,6.53125204]
[1748690867120,12.31112491,153.13,153.11,6.53125204]
[1748690867906,12.31112491,153.13,153.09,6.53210529]
[1748690868707,12.31112491,153.12,153.09,6.53210529]
[1748690869108,12.31112491,153.12,153.08,6.532532]
[1748690873914,12.31112491,153.13,153.08,18.84365691]
[1748690875127,12.31112491,153.15,153.1,12.31112491]
[1748690876335,12.31112491,153.15,153.11,6.53125204]
[1748690879912,7.87934624,153.15,153.1,7.87934624]
[1748690882527,7.87934624,153.15,153.11,6.53125204]
[1748690883851,7.87934624,153.13,153.1,6.53152506]
[1748690884033,7.87934624,153.13,153.09,14.41126397]
[1748690885427,7.87934624,153.12,153.08,6.53235737]
[1748690891267,7.87934624,153.1,153.06,26.0]
[1748690891748,7.87934624,153.1,153.06,32.53313291]
[1748690892070,7.87934624,153.08,153.03,7.87934624]
[1748690893052,7.87934624,153.08,153.04,6.53423941]
[1748690895043,7.87934624,153.09,153.04,6.53423941]
[1748690897331,7.87934624,153.08,153.04,6.53423941]
[1748690898460,7.87934624,153.07,153.03,6.5345641]
[1748690900030,1.0,153.06,153.03,6.5345641]
[1748690900235,8.87934624,153.06,153.03,6.5345641]
[1748690900845,1.0,153.06,153.03,6.5345641]
[1748690907394,8.87934624,153.06,153.03,6.5345641]
[1748690911845,8.87934624,153.06,153.02,33.87934624]
[1748690911846,7.87934624,153.05,153.02,32.53491854]
[1748690913288,7.87934624,153.05,152.99,7.87934624]
[1748690913447,7.87934624,153.02,152.98,6.53680219]
[1748690913650,7.87934624,153.01,152.97,6.53705449]
[1748690913867,6.53391001,153.05,152.97,6.53705449]
[1748690913868,7.87934624,153.0,152.97,6.53705449]
[1748690914655,7.87934624,153.01,152.97,6.53705449]
[1748690915549,7.87934624,153.0,152.97,6.53705449]
[1748690916150,7.87934624,153.0,152.96,6.53749233]
[1748690918069,186.06142941,153.05,152.95,6.53793194]
[1748690918070,7.87934624,152.99,152.95,6.53793194]
[1748690918273,7.87934624,153.0,152.95,14.41727818]
[1748690919576,6.53520209,153.02,152.95,14.41727818]
[1748690919876,7.87934624,153.04,152.99,7.87934624]
[1748690921262,7.87934624,153.04,153.0,6.53594771]
[1748690921776,7.87934624,153.03,153.0,6.53594771]
[1748690921955,12.33039686,153.03,153.0,6.53594771]
[1748690922464,12.33039686,153.02,152.97,12.33039686]
[1748690924079,12.33039686,153.02,152.98,6.53662041]
[1748690924577,12.33039686,153.01,152.98,6.53662041]
[1748690925175,12.33039686,153.01,152.96,6.53751363]
[1748690925355,12.33039686,153.0,152.96,6.53751363]
[1748690925758,6.53514188,153.02,152.95,6.53793768]
[1748690925759,12.33039686,152.99,152.95,6.53793768]
[1748690926889,12.33039686,153.0,152.95,18.86833454]
[1748690928278,12.33039686,152.99,152.95,6.53793768]
[1748690928481,6.5346664,153.03,152.95,6.53793768]
[1748690928692,12.33039686,153.0,152.95,18.86833454]
[1748690931591,12.33039686,152.99,152.95,6.53793768]
[1748690933072,10.68545506,153.03,152.95,6.53793768]
[1748690933073,12.33039686,153.01,152.96,12.33039686]
[1748690934077,12.33039686,153.01,152.96,18.86767526]
[1748690934673,18.86591744,153.01,152.96,18.86767526]
[1748690936076,12.33039686,153.01,152.96,18.86767526]
[1748690937272,22.73152878,153.03,152.98,12.33039686]
[1748690937687,22.73152878,153.03,152.99,6.53637492]
[1748690938071,22.73152878,153.03,152.92,87.8]
[1748690938072,0.14216157,152.99,152.92,87.8]
[1748690938292,12.33039686,152.96,152.91,38.33039686]
[1748690938600,12.33039686,152.97,152.92,12.33039686]
[1748690939499,12.33039686,152.97,152.93,6.53893938]
[1748690942298,12.33039686,153.02,152.96,38.33039686]
[1748690942599,22.73152878,153.03,152.98,12.33039686]
[1748690942990,12.33039686,153.02,152.97,12.33039686]
[1748690944088,10.40113192,153.03,152.98,6.53680219]
[1748690944286,22.73152878,153.03,152.99,12.33039686]
[1748690945875,10.40113192,153.03,152.99,12.33039686]
[1748690946288,10.40113192,153.03,153.0,6.53594771]
[1748690947201,22.73152878,153.03,153.0,6.53594771]
[1748690948382,22.73152878,153.03,152.99,6.53637492]
[1748690948582,10.40113192,153.03,152.99,18.86677178]
[1748690957418,32.00304819,153.05,153.02,12.33039686]
[1748690957593,32.00304819,153.05,153.03,12.33039686]
[1748690958995,32.00304819,153.05,152.99,32.53637492]
[1748690958996,12.33039686,153.04,152.99,32.53637492]
[1748690959196,12.33039686,153.04,152.99,44.86677178]
[1748690959616,44.33344505,153.05,153.0,12.33039686]
[1748690961095,44.33344505,153.05,153.0,18.86603796]
[1748690961294,44.33344505,153.05,153.0,6.5356411]
[1748690962613,50.86735961,153.05,153.0,6.5356411]
[1748690963016,32.00304819,153.05,153.0,6.5356411]
[1748690963202,32.00304819,153.05,153.02,12.33039686]
[1748690963893,32.00304819,153.05,153.03,12.33039686]
[1748690964218,1.0,153.06,153.04,12.33039686]
[1748690964518,1.0,153.06,153.05,12.33039686]
[1748690965215,1.0,153.06,153.05,18.86420933]
[1748690970095,1.0,153.06,153.02,33.8129]
[1748690970323,1.0,153.06,153.03,12.33039686]
[1748690970825,1.0,153.06,153.03,18.86492773]
[1748690972108,1.0,153.06,153.03,6.53453087]
[1748690972313,1.0,153.06,153.03,12.33039686]
[1748690972507,19.86379262,153.06,153.01,106.66576908]
[1748690973113,12.33039686,153.05,153.01,94.33537222]
[1748690974535,19.86379262,153.06,153.01,106.66576908]
[1748690974937,13.33039686,153.06,153.01,18.86576908]
[1748690975108,1.0,153.06,153.02,12.33039686]
[1748690976329,13.33039686,153.06,153.01,18.86576908]
[1748690977030,19.863796,153.06,153.01,12.33039686]
[1748690977210,12.33039686,153.05,153.0,38.33039686]
[1748690977425,12.33039686,153.05,153.01,6.5354816]
[1748690980811,19.863796,153.06,153.01,18.86587846]
[1748690981020,13.33039686,153.06,153.01,18.86587846]
[1748690981224,12.33039686,153.05,153.0,44.8662261]
[1748690983620,18.86436802,153.05,153.0,44.8662261]
[1748690985042,1.0,153.06,153.0,44.8662261]
[1748690985347,1.0,153.06,153.03,12.33039686]
[1748690987326,1.0,153.06,153.03,18.86487509]
[1748690990155,1.0,153.06,153.05,12.33039686]
[1748690992019,1.0,153.06,153.05,18.86420933]
[1748690995351,1.0,153.06,153.05,12.33039686]
[1748690996238,1.0,153.06,153.04,18.86450341]
[1748690997477,1.0,153.06,153.05,12.33039686]
[1748690998558,1.0,153.06,153.04,12.33039686]
[1748691000056,1.0,153.06,153.03,12.33039686]
[1748691000250,1.0,153.06,153.02,6.53509345]
[1748691000251,1.0,153.06,153.04,12.33039686]
[1748691000446,1.0,153.06,153.05,12.33039686]
[1748691000850,1.0,153.06,153.04,12.33039686]
[1748691001349,1.0,153.06,153.03,12.33039686]
[1748691001740,1.0,153.06,153.04,12.33039686]
[1748691002454,1.0,153.06,153.04,18.8644283]
[1748691003269,1.0,153.06,153.03,18.86492852]
[1748691003454,1.0,153.06,153.02,6.53499383]
[1748691003854,13.33039686,153.06,153.02,6.53499383]
[1748691005167,1.0,153.06,153.02,18.86539069]
[1748691005349,1.0,153.06,153.01,44.8657537]
[1748691005549,7.53348468,153.06,153.01,44.8657537]
[1748691006846,7.53348468,153.06,152.99,34.16387897]
[1748691006847,12.33039686,153.04,152.99,34.16387897]
[1748691007772,12.33039686,153.04,152.99,46.49427583]
[1748691008076,1.0,153.06,153.02,12.33039686]
[1748691008278,1.0,153.06,153.01,18.86591741]
[1748691008455,13.33039686,153.06,153.01,18.86591741]
[1748691010749,1.0,153.06,153.03,12.33039686]
[1748691011152,1.0,153.06,153.02,12.33039686]
[1748691011771,12.33039686,153.05,153.0,18.86618558]
[1748691012079,7.53348306,153.06,152.99,27.6279]
[1748691012080,12.33039686,153.04,152.99,20.49450228]
[1748691013281,12.33039686,153.05,153.0,12.33039686]
[1748691014662,12.33039686,153.04,152.99,20.49450228]
[1748691015174,12.33039686,153.04,152.99,8.16410542]
[1748691015355,12.33039686,153.04,152.99,20.49450228]
[1748691019959,12.33039686,153.04,153.0,18.86616587]
[1748691020170,18.86441156,153.05,153.0,18.86616587]
[1748691021683,12.33039686,153.05,153.0,18.86616587]
[1748691021881,1.0,153.06,153.03,12.33039686]
[1748691022086,1.0,153.06,153.04,12.33039686]
[1748691022259,1.0,153.06,153.05,12.33039686]
[1748691023680,1.0,153.06,153.05,18.86420933]
[1748691030284,1.0,153.06,153.05,12.33039686]
[1748691030502,1.0,153.06,153.04,12.33039686]
[1748691031704,1.0,153.06,153.04,18.8642909]
[1748691034162,1.0,153.06,153.04,12.33039686]
[1748691034364,1.0,153.06,153.04,18.86439578]
[1748691035099,1.0,153.06,153.05,12.33039686]
[1748691037177,1.0,153.06,153.05,18.86420933]
[1748691037568,1.0,153.06,153.04,12.33039686]
[1748691037775,1.0,153.06,153.03,32.53427259]
[1748691039479,1.0,153.06,153.05,12.33039686]
[1748691042180,1.0,153.06,153.05,18.86420933]
[1748691044311,1.0,153.06,153.05,44.86420933]
[1748691044677,1.0,153.06,153.05,37.51385819]
[1748691044882,1.0,153.06,153.05,37.79818133]
[1748691048908,1.0,153.06,153.05,125.59818133]
[1748691049408,9.37462175,153.18,153.09,26.0]
[1748691049605,12.33039686,153.15,153.1,12.33039686]
[1748691050617,12.33039686,153.15,153.11,6.53125204]
[1748691051908,12.33039686,153.15,153.1,18.86191577]
[1748691052117,6.52922978,153.16,153.1,6.53151891]
[1748691052118,12.33039686,153.14,153.1,6.53151891]
[1748691053689,12.33039686,153.15,153.1,18.86191577]
[1748691057315,18.8600591,153.15,153.09,38.33039686]
[1748691057543,12.33039686,153.12,153.09,26.0]
[1748691057901,6.52966224,153.15,153.09,32.53205154]
[1748691058106,12.33039686,153.14,153.09,44.8624484]
[1748691058494,12.33039686,153.15,153.1,12.33039686]
[1748691058703,1.5327,153.19,153.14,12.33039686]
[1748691058905,13.86309686,153.19,153.14,12.33039686]
[1748691060227,1.5327,153.19,153.15,12.33039686]
[1748691060613,13.86309686,153.19,153.14,12.33039686]
[1748691062825,22.79426306,153.2,153.15,18.85994305]
[1748691063209,29.3217181,153.2,153.15,18.85994305]
[1748691063807,29.3217181,153.2,153.15,6.52954619]
[1748691064300,12.33039686,153.19,153.15,6.52954619]
[1748691064502,22.79426306,153.2,153.15,18.85994305]
[1748691064695,10.4638662,153.2,153.16,12.33039686]
[1748691064895,12.33039686,153.19,153.15,6.52954619]
[1748691066431,12.33039686,153.18,153.14,6.52992796]
[1748691066808,6.52796735,153.19,153.14,18.86032482]
[1748691066809,12.33039686,153.19,153.14,18.86032482]
[1748691070447,18.85824681,153.19,153.14,18.86032482]
[1748691070762,12.33039686,153.17,153.12,38.33039686]
[1748691071647,12.33039686,153.18,153.13,12.33039686]
[1748691071846,12.33039686,153.18,153.13,18.86040082]
[1748691076781,18.85824681,153.19,153.14,12.33039686]
[1748691077996,18.85824681,153.19,153.14,18.8603007]
[1748691078388,12.33039686,153.18,153.14,18.8603007]
[1748691079485,10.4638662,153.2,153.16,12.33039686]
[1748691080681,10.4638662,153.2,153.17,6.5286936]
[1748691081277,137.72385003,153.21,153.17,18.85909046]
[1748691081486,12.33039686,153.22,153.17,18.85909046]
[1748691082986,12.33039686,153.2,153.16,6.52894712]
[1748691085013,18.85792413,153.2,153.15,18.85979346]
[1748691085382,18.85792413,153.2,153.14,1.5689]
[1748691085383,12.33039686,153.19,153.14,12.33039686]
[1748691085579,12.33039686,153.18,153.13,18.86079586]
[1748691086484,12.33039686,153.14,153.08,6.532532]
[1748691086684,12.33039686,153.12,153.08,6.532532]
[1748691087011,0.28432314,153.17,153.05,12.33039686]
[1748691087012,12.33039686,153.1,153.05,12.33039686]
[1748691087304,12.33039686,153.11,153.06,12.33039686]
[1748691088405,12.33039686,153.11,153.07,6.53295877]
[1748691088721,12.33039686,153.12,153.07,18.86335563]